bitfinex-derivatives/quotes_SOLF0:USTF0_20241027
["timestamp","ask_amount","ask_price","bid_price","bid_amount"]
[1729999243937,2.4466,171.94,171.85,8.06026307]
[1729999243938,8.06026307,171.91,171.85,8.06026307]
[1729999244137,4.18,171.89,171.85,8.06026307]
[1729999244347,4.18,171.9,171.85,8.06026307]
[1729999244636,12.24026307,171.9,171.85,8.06026307]
[1729999245138,12.24026307,171.9,171.88,2.9122]
[1729999246536,4.18,171.9,171.88,2.9122]
[1729999249745,4.18,171.9,171.83,3.7629]
[1729999249943,8.06026307,171.88,171.83,11.82316307]
[1729999250848,8.06026307,171.88,171.85,2.9127]
[1729999251844,2.9122,171.89,171.85,2.9127]
[1729999252842,2.9123,171.88,171.85,2.9127]
[1729999253464,4.18,171.9,171.84,8.06026307]
[1729999253645,4.18,171.9,171.87,2.9123]
[1729999253844,2.9118,171.91,171.87,8.06026307]
[1729999253845,4.18,171.89,171.87,8.06026307]
[1729999255250,4.18,171.89,171.88,2.9123]
[1729999255652,4.18,171.89,171.83,3.7629]
[1729999255851,2.9124,171.88,171.84,2.9129]
[1729999256743,2.9126,171.87,171.83,4.1443]
[1729999257141,2.9126,171.87,171.83,2.9131]
[1729999257944,8.06026307,171.84,171.79,8.06026307]
[1729999259151,8.06026307,171.84,171.81,2.9135]
[1729999260748,8.06026307,171.83,171.78,1.2093]
[1729999261053,10.97376307,171.82,171.78,2.9139]
[1729999261354,4.18,171.81,171.77,9.28436307]
[1729999261750,4.18,171.81,171.79,2.9138]
[1729999264857,4.18,171.81,171.8,8.06026307]
[1729999265058,4.18,171.84,171.8,8.06026307]
[1729999265957,4.18,171.84,171.82,8.06026307]
[1729999266351,4.18,171.84,171.83,2.9131]
[1729999266552,4.18,171.84,171.83,10.97336307]
[1729999266853,8.06026307,171.89,171.83,8.06026307]
[1729999266854,4.18,171.87,171.83,8.06026307]
[1729999267049,4.18,171.87,171.85,10.97296307]
[1729999267257,4.18,171.87,171.86,8.06026307]
[1729999267855,2.9118,171.91,171.86,10.97276307]
[1729999268165,4.18,171.89,171.86,10.97276307]
[1729999268455,2.9118,171.91,171.86,10.97276307]
[1729999268659,4.18,171.9,171.87,2.9124]
[1729999271357,7.092,171.9,171.87,2.9124]
[1729999271759,4.18,171.9,171.87,10.97266307]
[1729999271967,4.18,171.9,171.88,2.9123]
[1729999272863,10.97196307,171.92,171.88,2.9123]
[1729999273066,4.18,171.9,171.88,2.9123]
[1729999274267,10.97196307,171.92,171.88,2.9123]
[1729999274467,4.18,171.91,171.88,2.9123]
[1729999277973,7.0919,171.91,171.87,2.9124]
[1729999278170,15.15216307,171.91,171.87,2.9124]
[1729999278861,10.97216307,171.91,171.87,2.9124]
[1729999279066,2.9119,171.91,171.87,10.97266307]
[1729999280172,10.97196307,171.92,171.88,2.9122]
[1729999281070,4.18,171.93,171.87,8.06026307]
[1729999281276,4.18,171.93,171.89,8.06026307]
[1729999281469,4.18,171.93,171.81,2.4578]
[1729999281470,4.18,171.93,171.9,8.06026307]
[1729999281667,4.18,171.93,171.92,2.9116]
[1729999282571,9.28806307,171.95,171.91,2.9118]
[1729999282780,4.18,171.94,171.91,2.9118]
[1729999283671,4.18,171.94,171.9,8.06026307]
[1729999283867,10.97106307,171.97,171.92,8.06026307]
[1729999284073,4.18,171.96,171.92,8.06026307]
[1729999284269,4.18,171.96,171.93,8.06026307]
[1729999284676,4.18,171.96,171.94,2.9111]
[1729999284869,8.06026307,171.98,171.94,2.9111]
[1729999285176,4.18,171.97,171.93,8.06026307]
[1729999285378,4.18,171.97,171.94,2.9113]
[1729999285780,4.18,171.98,171.95,8.06026307]
[1729999287275,4.18,171.98,171.95,10.97126307]
[1729999289179,57.8686,172.02,171.96,8.06026307]
[1729999289383,57.8686,172.02,171.97,8.06026307]
[1729999289384,4.18,172.01,171.97,8.06026307]
[1729999289579,1.2916,172.09,171.92,4.18]
[1729999289580,8.06026307,172.04,171.92,4.18]
[1729999289888,4.18,172.03,171.98,8.06026307]
[1729999290680,2.9098,172.03,171.99,2.9104]
[1729999290980,4.18,172.02,171.98,8.06026307]
[1729999291183,4.18,172.02,172.0,10.97036307]
[1729999293679,4.18,172.02,171.93,1.2045]
[1729999293881,8.06026307,172.01,171.96,10.97116307]
[1729999295084,8.06026307,171.99,171.94,2.9111]
[1729999295283,8.06026307,171.99,171.94,10.97136307]
[1729999295486,4.18,171.98,171.94,10.97136307]
[1729999295888,4.18,171.98,171.92,2.9115]
[1729999296091,4.18,171.98,171.93,8.06026307]
[1729999296393,4.18,171.98,171.94,8.06026307]
[1729999296985,12.24026307,171.98,171.92,8.06026307]
[1729999297295,8.06026307,171.97,171.92,8.06026307]
[1729999298290,2.9111,171.96,171.92,10.97176307]
[1729999299698,2.9108,171.97,171.93,2.9114]
[1729999303899,4.18,171.98,171.96,2.9109]
[1729999304309,2.9103,172.0,171.95,8.06026307]
[1729999304501,4.18,171.99,171.95,8.06026307]
[1729999304701,4.18,171.99,171.96,2.9108]
[1729999305506,4.18,171.99,171.97,2.9107]
[1729999306103,2.9103,172.0,171.97,2.9107]
[1729999306306,7.0903,172.0,171.97,2.9107]
[1729999306900,2.9106,171.99,171.93,8.06026307]
[1729999307814,2.9106,171.99,171.94,2.9112]
[1729999308110,2.9106,171.99,171.95,8.06026307]
[1729999309416,2.9106,171.99,171.95,10.97136307]
[1729999318718,8.06026307,171.97,171.89,2.4404]
[1729999318924,7.0909,171.96,171.91,8.06026307]
[1729999319624,4.18,171.96,171.91,8.06026307]
[1729999319935,4.18,171.96,171.93,2.9113]
[1729999320923,4.18,171.96,171.92,2.9116]
[1729999320924,2.9111,171.95,171.92,2.9116]
[1729999321123,2.9111,171.95,171.89,9.28956307]
[1729999321324,12.24026307,171.96,171.89,9.28956307]
[1729999321624,10.97156307,171.94,171.91,2.9117]
[1729999322019,10.97156307,171.94,171.84,1.2668]
[1729999322020,8.06026307,171.92,171.84,1.2668]
[1729999322227,4.18,171.91,171.88,8.06026307]
[1729999322425,4.18,171.92,171.88,8.06026307]
[1729999323023,4.18,171.92,171.9,2.9118]
[1729999324824,8.06026307,171.91,171.88,2.9121]
[1729999325729,10.97216307,171.91,171.87,2.9124]
[1729999326428,8.06026307,171.9,171.76,174.68413721]
[1729999326626,8.06026307,171.9,171.84,2.9128]
[1729999326627,2.9124,171.88,171.84,2.9128]
[1729999326823,4.18,171.88,171.83,8.06026307]
[1729999327225,4.18,171.88,171.85,10.97306307]
[1729999329630,4.18,171.88,171.85,8.06026307]
[1729999330536,4.18,171.88,171.81,6.58648026]
[1729999330537,4.09369752,171.97,171.86,8.06026307]
[1729999330835,4.09369752,171.97,171.8,3.93821645]
[1729999330836,8.06026307,171.93,171.87,8.06026307]
[1729999331033,4.18,171.92,171.88,2.9122]
[1729999331727,12.24026307,171.92,171.88,2.9122]
[1729999333128,15.15186307,171.92,171.88,2.9122]
[1729999333732,10.97186307,171.92,171.88,2.9122]
[1729999333936,4.18,171.91,171.88,2.9122]
[1729999334833,4.18,171.91,171.89,2.912]
[1729999335035,4.18,171.91,171.87,8.06026307]
[1729999335230,4.18,171.92,171.89,8.06026307]
[1729999335434,4.18,171.94,171.92,2.9116]
[1729999335631,1.2619,171.98,171.92,8.06026307]
[1729999335831,1.2619,171.98,171.86,10.54611573]
[1729999335832,56.58,171.99,171.94,8.06026307]
[1729999336030,56.58,171.99,171.95,8.06026307]
[1729999336031,4.18,171.98,171.95,8.06026307]
[1729999337236,4.18,171.98,171.96,2.9109]
[1729999340636,4.18,171.98,171.95,8.06026307]
[1729999340942,4.18,171.98,171.97,2.9108]
[1729999344542,2.9101,172.01,171.97,2.9108]
[1729999344745,4.18,172.0,171.97,2.9108]
[1729999344931,67.08351669,172.27,171.98,8.06026307]
[1729999344932,13.85891203,172.17,171.98,8.06026307]
[1729999345136,4.18,172.04,171.98,8.06026307]
[1729999346236,7.0896,172.04,171.99,2.9104]
[1729999347035,15.14986307,172.04,171.99,2.9104]
[1729999347645,15.14986307,172.04,171.99,10.97066307]
[1729999348439,7.0896,172.04,171.99,10.97066307]
[1729999349240,4.18,172.03,171.99,2.9104]
[1729999349446,4.18,172.03,172.0,2.9101]
[1729999349745,4.18,172.03,172.0,8.06026307]
[1729999350252,4.18,172.03,171.96,5.14451957]
[1729999350253,4.18,172.03,171.94,4.18]
[1729999350541,7.0898,172.03,171.99,2.9104]
[1729999351636,8.06026307,172.02,171.98,8.06026307]
[1729999351943,8.06026307,172.01,171.96,8.06026307]
[1729999352145,8.06026307,172.01,171.95,10.97126307]
[1729999352146,2.9106,171.99,171.95,10.97126307]
[1729999352446,7.0906,171.99,171.95,10.97126307]
[1729999353739,12.24026307,171.99,171.95,8.06026307]
[1729999353941,2.9106,171.98,171.94,2.9112]
[1729999354249,12.24026307,171.99,171.93,8.06026307]
[1729999355041,8.06026307,171.98,171.92,8.06026307]
[1729999356350,2.9108,171.97,171.93,2.9114]
[1729999356742,4.18,171.99,171.95,8.06026307]
[1729999356949,7.0905,171.99,171.95,10.97136307]
[1729999359043,15.15076307,171.99,171.95,2.9111]
[1729999363253,4.18,171.99,171.97,8.06026307]
[1729999364461,4.18,171.99,171.98,2.9106]
[1729999364647,2.9099,172.02,171.98,2.9106]
[1729999364850,4.18,172.01,171.98,2.9106]
[1729999365251,2.9099,172.02,171.98,2.9106]
[1729999365456,4.18,172.01,171.98,2.9106]
[1729999373467,4.18,172.01,171.97,8.06026307]
[1729999373666,4.18,172.01,171.98,2.9105]
[1729999375873,2.9099,172.02,171.98,2.9105]
[1729999376065,4.18,172.01,171.99,2.9104]
[1729999378870,4.18,172.01,171.98,8.06026307]
[1729999379065,4.18,172.01,171.98,10.97076307]
[1729999381174,4.18,172.01,171.99,2.9104]
[1729999384180,4.18,172.01,171.94,5.14142483]
[1729999384472,4.18,172.01,171.9,7.8989]
[1729999384473,4.18,172.01,171.95,8.06026307]
[1729999385281,2.9103,172.0,171.96,2.9109]
[1729999387774,4.18,172.01,171.97,8.06026307]
[1729999387979,7.0902,172.01,171.97,10.97096307]
[1729999394383,8.06026307,172.04,171.99,10.97056307]
[1729999394384,2.9097,172.04,171.99,10.97056307]
[1729999394582,4.18,172.03,171.99,8.06026307]
[1729999394983,2.3686,172.08,172.0,8.06026307]
[1729999395180,2.9095,172.05,172.02,8.06026307]
[1729999400284,2.9095,172.05,172.01,2.91]
[1729999400483,2.9098,172.03,171.99,2.9104]
[1729999400688,4.18,172.02,171.99,2.9104]
[1729999401082,4.18,172.02,171.98,8.06026307]
[1729999401282,4.18,172.02,172.0,2.9103]
[1729999413715,4.18,172.02,172.0,10.97056307]
[1729999417803,4.18,172.02,172.01,8.06026307]
[1729999418505,2.3686,172.08,172.01,8.06026307]
[1729999418709,4.18,172.07,172.01,10.97026307]
[1729999419103,4.18,172.07,172.03,8.06026307]
[1729999419104,2.9093,172.06,172.03,8.06026307]
[1729999423114,4.18,172.05,172.03,8.06026307]
[1729999423715,7.0894,172.05,172.01,10.97036307]
[1729999427408,7.0894,172.05,172.02,2.9099]
[1729999428721,7.0894,172.05,172.02,10.97016307]
[1729999429716,4.18,172.04,172.02,8.06026307]
[1729999429923,4.18,172.04,172.03,10.96996307]
[1729999432214,2.9088,172.09,172.04,2.9094]
[1729999432517,4.18,172.08,172.05,8.06026307]
[1729999432915,88.09408043,172.12,172.07,8.06026307]
[1729999433230,4.18,172.11,172.07,8.06026307]
[1729999434317,4.18,172.11,172.07,10.96936307]
[1729999434517,4.18,172.1,172.07,10.96936307]
[1729999436623,4.18,172.1,172.06,2.9092]
[1729999436918,4.18,172.1,171.98,4.18]
[1729999436919,8.06026307,172.09,172.02,8.06026307]
[1729999437119,8.06026307,172.09,172.02,10.97006307]
[1729999438416,2.9092,172.07,172.02,10.97006307]
[1729999438615,4.18,172.06,171.96,3.7257]
[1729999438812,2.9096,172.04,172.0,10.97056307]
[1729999441323,2.9095,172.05,172.0,10.97056307]
[1729999441518,2.9095,172.05,172.02,8.06026307]
[1729999442926,2.9092,172.07,172.04,8.06026307]
[1729999443228,4.18,172.06,172.04,8.06026307]
[1729999443425,4.18,172.06,172.04,10.96976307]
[1729999446123,4.18,172.07,172.04,10.96976307]
[1729999446322,4.18,172.07,172.06,8.06026307]
[1729999449132,4.18,172.07,172.04,2.9095]
[1729999449333,4.18,172.07,172.05,8.06026307]
[1729999451534,4.18,172.07,172.06,8.06026307]
[1729999452437,4.18,172.07,172.06,10.96956307]
[1729999455730,2.9085,172.11,172.06,8.06026307]
[1729999455932,4.18,172.1,172.08,8.06026307]
[1729999456646,7.0885,172.11,172.08,8.06026307]
[1729999459050,2.9085,172.11,172.08,8.06026307]
[1729999459353,4.18,172.1,172.08,8.06026307]
[1729999460645,4.18,172.1,172.09,2.9087]
[1729999462948,4.18,172.1,172.08,8.06026307]
[1729999463250,4.18,172.1,172.08,10.96916307]
[1729999463947,2.9088,172.09,172.05,2.9094]
[1729999464148,2.9088,172.09,172.06,8.06026307]
[1729999471552,2.9088,172.09,172.02,3.7008]
[1729999471553,2.9093,172.06,172.03,8.06026307]
[1729999471753,4.18,172.06,172.03,8.06026307]
[1729999477366,7.0894,172.06,172.03,8.06026307]
[1729999478365,2.9097,172.04,172.0,2.9103]
[1729999478562,2.9097,172.04,172.01,8.06026307]
[1729999479263,2.9099,172.02,171.99,8.06026307]
[1729999479469,7.0699,172.02,171.99,8.06026307]
[1729999480266,7.0699,172.02,171.99,10.97066307]
[1729999480469,4.16,172.02,171.99,8.06026307]
[1729999480669,4.16,172.02,171.96,5.3582]
[1729999480863,4.16,172.02,171.97,8.06026307]
[1729999481777,2.9101,172.01,171.97,10.97086307]
[1729999482874,4.16,172.02,171.97,8.06026307]
[1729999483174,2.9104,172.0,171.97,8.06026307]
[1729999484477,2.9104,172.0,171.96,1.1769]
[1729999484673,2.9104,172.0,171.97,8.06026307]
[1729999484868,2.9106,171.99,171.97,8.06026307]
[1729999485469,2.9109,171.97,171.94,8.06026307]
[1729999486777,2.911,171.96,171.94,8.06026307]
[1729999486979,12.24026307,171.98,171.94,8.06026307]
[1729999487974,2.911,171.96,171.92,2.9116]
[1729999488172,2.911,171.96,171.92,10.97186307]
[1729999489480,2.9109,171.97,171.93,10.97156307]
[1729999490782,2.9109,171.97,171.93,2.9113]
[1729999492674,8.06026307,171.96,171.93,2.9113]
[1729999495178,8.06026307,171.94,171.9,2.9118]
[1729999495373,4.18,171.93,171.88,8.06026307]
[1729999496785,4.18,171.93,171.9,2.9118]
[1729999499279,4.18,171.93,171.91,2.9118]
[1729999500480,2.9105,171.99,171.95,2.911]
[1729999500786,4.18,171.98,171.95,2.911]
[1729999502084,4.18,171.97,171.96,2.9109]
[1729999502281,10.97076307,171.99,171.96,2.9109]
[1729999502282,8.06026307,171.99,171.96,2.9109]
[1729999502482,4.18,171.97,171.96,2.9109]
[1729999502888,64.62026307,172.01,171.96,8.06026307]
[1729999503187,4.18,172.0,171.97,2.9106]
[1729999504587,67.53036307,172.01,171.9,3.686]
[1729999504588,56.56,172.01,171.99,10.97056307]
[1729999504786,4.18,172.0,171.99,8.06026307]
[1729999505696,4.18,172.0,171.99,10.97066307]
[1729999506982,56.56,172.01,171.99,10.97066307]
[1729999507288,56.56,172.01,172.0,8.06026307]
[1729999507289,4.18,172.01,172.0,8.06026307]
[1729999507892,4.18,172.03,172.0,8.06026307]
[1729999508080,4.18,172.03,172.02,8.06026307]
[1729999508577,2.909,172.08,172.04,2.9096]
[1729999508783,4.16,172.07,172.04,2.9096]
[1729999508983,4.16,172.06,172.04,2.9096]
[1729999509894,4.16,172.06,172.04,10.96986307]
[1729999511989,4.16,172.06,172.04,2.9096]
[1729999514383,12.22026307,172.06,171.96,3.6905]
[1729999514587,8.06026307,172.05,171.99,8.06026307]
[1729999516296,4.16,172.06,172.02,8.06026307]
[1729999516588,4.16,172.06,172.04,8.06026307]
[1729999517206,4.16,172.06,172.05,2.9094]
[1729999523204,4.16,172.06,172.05,10.96966307]
[1729999523606,56.56,172.11,172.05,8.06026307]
[1729999523906,4.16,172.1,172.09,8.06026307]
[1729999525507,4.16,172.1,172.09,10.96896307]
[1729999526411,2.9077,172.16,172.12,2.9082]
[1729999526599,4.16,172.15,172.12,2.9082]
[1729999526802,4.16,172.15,172.11,8.06026307]
[1729999528305,4.16,172.14,172.11,8.06026307]
[1729999528817,4.16,172.14,172.1,10.96876307]
[1729999529312,4.16,172.14,172.11,10.96856307]
[1729999532825,12.22026307,172.14,172.04,3.5508]
[1729999533016,2.9082,172.13,172.07,8.06026307]
[1729999533310,2.9082,172.13,172.09,8.06026307]
[1729999534116,12.22026307,172.14,172.07,10.96916307]
[1729999534416,10.96866307,172.12,172.07,10.96916307]
[1729999536224,8.06026307,172.11,172.05,10.96966307]
[1729999536521,7.0686,172.1,172.05,10.96966307]
[1729999537418,8.06026307,172.09,172.04,1.1752]
[1729999537615,8.06026307,172.09,172.03,8.06026307]
[1729999538015,10.96916307,172.09,172.04,2.9095]
[1729999539439,2.9089,172.08,172.04,2.9095]
[1729999541515,2.9089,172.08,172.05,2.9094]
[1729999542823,4.16,172.1,172.06,10.96946307]
[1729999543934,7.0686,172.1,172.07,2.9091]
[1729999544121,4.16,172.09,172.07,2.9091]
[1729999548818,2.9089,172.08,172.05,2.9094]
[1729999549026,4.16,172.07,172.05,2.9094]
[1729999549517,56.54,172.16,172.05,8.06026307]
[1729999549722,4.16,172.15,172.12,8.06026307]
[1729999550120,4.16,172.15,172.13,8.06026307]
[1729999550426,4.16,172.15,172.13,10.96826307]
[1729999556330,4.16,172.15,172.14,2.9079]
[1729999559831,4.16,172.15,172.13,2.908]
[1729999560835,4.16,172.15,172.1,8.06026307]
[1729999560836,12.22026307,172.15,172.1,8.06026307]
[1729999562228,15.12806307,172.15,172.11,2.9084]
[1729999562433,7.0678,172.15,172.11,10.96866307]
[1729999571840,8.06026307,172.17,172.07,2.387]
[1729999571841,4.16,172.14,172.13,2.908]
[1729999572143,4.16,172.14,172.13,10.96826307]
[1729999573750,4.16,172.14,172.11,2.9084]
[1729999573946,4.16,172.14,172.12,8.06026307]
[1729999574847,4.16,172.14,172.12,10.96846307]
[1729999575341,4.16,172.14,172.13,8.06026307]
[1729999576242,2.9079,172.15,172.13,8.06026307]
[1729999579243,4.16,172.16,172.13,8.06026307]
[1729999579443,7.0676,172.16,172.13,8.06026307]
[1729999580252,7.0676,172.16,172.12,2.9082]
[1729999580455,7.0676,172.16,172.12,10.96846307]
[1729999587548,4.16,172.16,172.13,2.908]
[1729999587943,4.16,172.16,172.12,8.06026307]
[1729999588148,7.0677,172.16,172.12,10.96836307]
[1729999592059,2.9081,172.14,172.1,2.9085]
[1729999592252,12.22026307,172.16,172.1,8.06026307]
[1729999592655,12.22026307,172.16,172.11,8.06026307]
[1729999593058,2.9079,172.15,172.11,10.96866307]
[1729999594566,12.22026307,172.16,172.12,2.9081]
[1729999594567,7.0677,172.16,172.12,2.9081]
[1729999594960,4.16,172.16,172.11,8.06026307]
[1729999595261,4.16,172.16,172.14,2.9079]
[1729999595756,4.16,172.23,172.15,8.06026307]
[1729999595963,4.16,172.23,172.2,8.06026307]
[1729999596459,4.16,172.23,172.22,8.06026307]
[1729999596662,2.9059,172.26,172.22,8.06026307]
[1729999596860,4.16,172.24,172.23,10.96656307]
[1729999597059,4.16,172.26,172.23,10.96656307]
[1729999597364,4.16,172.26,172.23,10.96666307]
[1729999600657,4.24,172.26,172.23,10.96666307]
[1729999604862,4.24,172.26,172.16,4.16]
[1729999604863,12.30026307,172.26,172.2,10.96706307]
[1729999605371,2.9062,172.25,172.2,10.96706307]
[1729999606070,8.06026307,172.24,172.14,1.2496]
[1729999606269,8.06026307,172.24,172.18,2.9071]
[1729999606270,2.9065,172.23,172.18,2.9071]
[1729999606469,4.24,172.22,172.18,10.96736307]
[1729999607684,4.24,172.22,172.17,2.9073]
[1729999607871,8.06026307,172.21,172.15,8.06026307]
[1729999608270,10.96706307,172.21,172.17,2.9074]
[1729999610578,4.24,172.22,172.13,9.32906307]
[1729999610579,8.06026307,172.19,172.13,9.32906307]
[1729999610782,12.30026307,172.18,172.13,9.32906307]
[1729999610981,4.24,172.17,172.13,9.32906307]
[1729999611586,4.24,172.17,172.13,1.2688]
[1729999611882,4.24,172.17,172.14,2.9078]
[1729999617282,4.24,172.17,172.15,2.9077]
[1729999621593,4.24,172.17,172.16,10.96786307]
[1729999622187,2.9067,172.21,172.18,2.9072]
[1729999622386,4.24,172.2,172.18,2.9072]
[1729999622587,4.24,172.2,172.16,8.06026307]
[1729999624291,4.24,172.2,172.17,2.9073]
[1729999624588,4.24,172.19,172.16,8.06026307]
[1729999624790,4.24,172.19,172.18,10.96736307]
[1729999626589,57.7624,172.25,172.18,8.06026307]
[1729999626795,56.5,172.25,172.21,8.06026307]
[1729999626992,4.24,172.24,172.21,8.06026307]
[1729999627389,4.24,172.24,172.23,2.9064]
[1729999629398,1.2368,172.31,172.23,8.06026307]
[1729999629601,4.2,172.29,172.26,8.06026307]
[1729999629800,4.2,172.28,172.27,8.06026307]
[1729999629995,4.2,172.29,172.27,8.06026307]
[1729999630599,4.2,172.29,172.27,10.96596307]
[1729999631307,4.2,172.29,172.26,8.06026307]
[1729999632201,2.9049,172.32,172.27,2.9057]
[1729999632406,4.2,172.31,172.27,2.9057]
[1729999632701,4.2,172.3,172.27,2.9057]
[1729999632901,4.2,172.38,172.29,8.06026307]
[1729999633093,8.06026307,172.37,172.31,8.06026307]
[1729999634403,7.1042,172.36,172.31,10.96526307]
[1729999634605,4.2,172.36,172.31,8.06026307]
[1729999635005,10.96476307,172.35,172.3,2.9052]
[1729999635315,2.9045,172.35,172.3,2.9052]
[1729999635511,2.9045,172.35,172.31,10.96526307]
[1729999636205,2.9045,172.35,172.28,1.1797]
[1729999636206,2.9045,172.35,172.3,2.9052]
[1729999636512,12.26026307,172.36,172.28,1.1797]
[1729999636513,8.06026307,172.34,172.28,9.23996307]
[1729999637416,4.2,172.36,172.28,9.23996307]
[1729999637417,4.2,172.36,172.32,8.06026307]
[1729999637707,4.2,172.36,172.33,8.06026307]
[1729999637911,4.2,172.36,172.31,8.06026307]
[1729999638101,4.2,172.36,172.31,10.96516307]
[1729999638102,7.1044,172.36,172.31,10.96516307]
[1729999638308,12.26026307,172.36,172.3,8.06026307]
[1729999638510,4.2,172.36,172.3,8.06026307]
[1729999638708,2.9047,172.34,172.3,8.06026307]
[1729999639406,2.905,172.32,172.27,12.15686307]
[1729999639609,4.2,172.31,172.27,12.15686307]
[1729999639910,4.2,172.31,172.27,9.25116307]
[1729999640109,2.9052,172.3,172.27,9.25116307]
[1729999641011,7.1051,172.31,172.27,9.25116307]
[1729999642107,4.2,172.31,172.3,2.9052]
[1729999642307,4.2,172.31,172.29,8.06026307]
[1729999642815,4.2,172.31,172.29,10.96556307]
[1729999644815,4.2,172.31,172.3,2.9052]
[1729999645712,2.85219056,172.43,172.29,8.06026307]
[1729999645713,4.2,172.34,172.29,8.06026307]
[1729999645913,4.2,172.35,172.33,8.06026307]
[1729999647022,7.1044,172.35,172.33,8.06026307]
[1729999647212,4.2,172.35,172.33,8.06026307]
[1729999648513,4.2,172.35,172.34,2.9045]
[1729999648713,4.2,172.35,172.33,8.06026307]
[1729999650414,4.2,172.35,172.33,10.96496307]
[1729999654022,4.2,172.35,172.34,8.06026307]
[1729999654915,7.1045,172.35,172.31,2.905]
[1729999655110,7.1045,172.35,172.31,10.96526307]
[1729999657223,2.9048,172.33,172.29,4.1291]
[1729999657529,12.26026307,172.35,172.3,8.06026307]
[1729999658123,3.7178,172.44,172.29,8.06026307]
[1729999658313,8.06026307,172.35,172.29,10.96566307]
[1729999658517,4.2,172.34,172.29,10.96566307]
[1729999659226,2.9048,172.33,172.29,10.96566307]
[1729999665928,2.9048,172.33,172.29,8.06026307]
[1729999666129,2.9048,172.33,172.3,2.9052]
[1729999666724,2.9048,172.33,172.3,10.96546307]
[1729999668624,2.9048,172.33,172.3,8.06026307]
[1729999669226,2.9048,172.33,172.29,2.9053]
[1729999669533,2.9048,172.33,172.3,8.06026307]
[1729999670126,4.2,172.34,172.24,2.9062]
[1729999670127,2.9057,172.28,172.24,2.9062]
[1729999670333,2.9057,172.28,172.24,8.06026307]
[1729999672026,2.9057,172.28,172.24,10.96646307]
[1729999674130,4.22,172.3,172.26,8.06026307]
[1729999674334,2.9055,172.28,172.26,8.06026307]
[1729999682239,4.22,172.29,172.24,2.9062]
[1729999682441,2.9057,172.27,172.24,8.06026307]
[1729999684442,2.906,172.26,172.22,2.9064]
[1729999684649,2.906,172.26,172.23,8.06026307]
[1729999685632,2.906,172.26,172.23,10.96666307]
[1729999687347,2.9058,172.27,172.23,10.96666307]
[1729999689343,12.28026307,172.29,172.26,10.96616307]
[1729999689344,4.22,172.29,172.26,10.96616307]
[1729999689550,4.22,172.29,172.28,8.06026307]
[1729999689744,3.6631,172.35,172.28,8.06026307]
[1729999689946,2.905,172.31,172.28,8.06026307]
[1729999700965,2.9049,172.32,172.29,8.06026307]
[1729999701770,2.9045,172.35,172.31,8.06026307]
[1729999702067,4.2,172.34,172.31,8.06026307]
[1729999702562,7.1045,172.34,172.31,8.06026307]
[1729999705166,7.1045,172.34,172.33,8.06026307]
[1729999705471,4.2,172.34,172.33,8.06026307]
[1729999707773,7.1042,172.36,172.33,8.06026307]
[1729999708573,4.2,172.36,172.33,10.96496307]
[1729999709472,7.1042,172.36,172.33,8.06026307]
[1729999711671,12.26026307,172.36,172.28,1.239]
[1729999711876,12.26026307,172.36,172.3,8.06026307]
[1729999711877,8.06026307,172.35,172.3,8.06026307]
[1729999712376,8.06026307,172.35,172.3,8.02506024]
[1729999712777,2.9046,172.34,172.3,10.93016024]
[1729999713675,2.905,172.32,172.3,8.02506024]
[1729999713878,8.06026307,172.35,172.3,8.02506024]
[1729999714880,2.9046,172.34,172.3,10.93016024]
[1729999718080,8.06026307,172.35,172.3,8.02506024]
[1729999718279,8.06026307,172.33,172.27,1.1932]
[1729999718479,4.2,172.32,172.27,8.06026307]
[1729999718878,7.105,172.32,172.27,2.9055]
[1729999719288,7.105,172.32,172.27,10.96576307]